fUSD/lending_fUSD_20251129
["ID","MTS","AMOUNT","RATE_DAILY","PERIOD"]
[395115698,1764449452648,-151.0,0.00027397,7]
[395115699,1764449452658,-151.0,0.00027397,7]
[395115700,1764449452668,-226.67,0.000274,7]
[395115701,1764449452678,-385.57,0.000274,7]
[395115702,1764449452688,-3765.44,0.000274,2]
[395115703,1764449452698,-175.92569437,0.000274,4]
[395115704,1764449452708,-175.92569437,0.000274,4]
[395115705,1764449452718,-175.92569437,0.000274,4]
[395115706,1764449452728,-175.92569437,0.000274,4]
[395115707,1764449452739,-175.92569437,0.000274,4]
[395115708,1764449452750,-175.92569437,0.000274,4]
[395115709,1764449452759,-175.92569437,0.000274,4]
[395115710,1764449452769,-175.92569437,0.000274,4]
[395115711,1764449452779,-175.92569437,0.000274,4]
[395115712,1764449452788,-175.92569437,0.000274,4]
[395115713,1764449452798,-175.92569437,0.000274,4]
[395115714,1764449452808,-175.92569437,0.000274,4]
[395115715,1764449452818,-175.92569437,0.000274,4]
[395115716,1764449452829,-175.92569437,0.000274,4]
[395115717,1764449452839,-175.92569437,0.000274,4]
[395115718,1764449452848,-175.92569437,0.000274,4]
[395115719,1764449452858,-175.92569437,0.000274,4]
[395115720,1764449452868,-175.92569437,0.000274,4]
[395115721,1764449452878,-175.92569437,0.000274,4]
[395115722,1764449452887,-175.92,0.000274,4]
[395115723,1764449452898,-410.49328687,0.000274,4]
[395115724,1764449452907,-410.49328687,0.000274,4]
[395115725,1764449452917,-410.49328687,0.000274,4]
[395115726,1764449452927,-410.49328687,0.000274,4]
[395115727,1764449452937,-410.49328687,0.000274,4]
[395115728,1764449452947,-410.49328687,0.000274,4]
[395115729,1764449452956,-410.49328687,0.000274,4]
[395115730,1764449452966,-410.49328687,0.000274,4]
[395115731,1764449452976,-410.49328687,0.000274,4]
[395115732,1764449452987,-410.49328687,0.000274,4]
[395115733,1764449452997,-410.49328687,0.000274,4]
[395115734,1764449453392,-410.49328687,0.000274,4]
[395115735,1764449453402,-410.49328687,0.000274,4]
[395115736,1764449453412,-410.49328687,0.000274,4]
[395115737,1764449453422,-410.49328687,0.000274,4]
[395115738,1764449453431,-410.49328687,0.000274,4]
[395115739,1764449453440,-410.49328687,0.000274,4]
[395115740,1764449453451,-410.49328687,0.000274,4]
[395115741,1764449453466,-410.49328687,0.000274,4]
[395115742,1764449453476,-410.49,0.000274,4]
[395115743,1764449453485,-157.45393925,0.000274,4]
[395115744,1764449453494,-157.45,0.000274,4]
[395115745,1764449453503,-192.34512387,0.000274,4]
[395115746,1764449453512,-192.34,0.000274,4]
[395115747,1764449453522,-151.0,0.000274,7]
[395115748,1764449453531,-151.0,0.000274,7]
[395115749,1764449453540,-151.0,0.000274,7]
[395115750,1764449453551,-2840.14,0.000274,2]
[395115751,1764449453560,-2840.14,0.000274,2]
[395115752,1764449453571,-2840.14,0.000274,2]
[395115753,1764449453581,-2840.14,0.000274,2]
[395115754,1764449453591,-2840.14,0.000274,2]
[395115755,1764449453600,-702.42,0.00027417,2]
[395115756,1764449453612,-702.42,0.00027417,2]
[395115757,1764449453621,-950.16,0.00027417,2]
[395115758,1764449453631,-551.92,0.00027417,2]
[395115759,1764449453640,-150.0,0.00027418,2]
[395115760,1764449453650,-169.97,0.00027418,2]
[395115761,1764449453659,-702.42,0.0002742,2]
[395115762,1764449453669,-702.42,0.0002742,2]
[395115763,1764449453679,-702.42,0.0002742,2]
[395115764,1764449453688,-177.85,0.0002742,2]
[395115765,1764449453697,-177.85,0.0002742,2]
[395115766,1764449453707,-355.28,0.0002742,2]
[395115767,1764449453716,-150.0,0.00027424,2]
[395115768,1764449453726,-150.0,0.00027424,2]
[395115769,1764449453736,-2426.2,0.00027429,2]
[395115770,1764449453745,-150.0,0.0002745,2]
[395115771,1764449453756,-1097.0,0.00027491,5]
[395115772,1764449453766,-680.42132499,0.00027567,2]
[395115773,1764449453775,-12638.6,0.00027671,2]
[395115774,1764449453784,-3000.0,0.00027672,14]
[395115775,1764449453794,-756.61674636,0.0002794,2]
[395115776,1764449453803,-3000.0,0.00027946,14]
[395115777,1764449453813,-800.0,0.00027946,14]
[395115778,1764449453823,-609.0,0.00027983,2]
[395115779,1764449453833,-1603.0,0.00027983,2]
[395115780,1764449453842,-640.0,0.00027983,2]
[395115781,1764449453853,-6505.0,0.00027983,2]
[395115782,1764449453862,-2000.0,0.000281,2]
[395115783,1764449453873,-519.9,0.0002812,2]
[395115784,1764449453883,-150.0,0.00028233,2]
[395115785,1764449453892,-418.03,0.00028234,2]
[395115786,1764449453902,-433.63,0.00028237,2]
[395115787,1764449453912,-150.0,0.00028237,2]
[395115788,1764449453923,-230.87,0.00028237,2]
[395115789,1764449453933,-150.0,0.00028238,2]
[395115790,1764449453943,-150.0,0.00028238,2]
[395115791,1764449453953,-150.0,0.00028238,2]
[395115792,1764449453963,-1213.49,0.0002824,2]
[395115793,1764449453972,-551.92,0.00028242,2]
[395115794,1764449453982,-177.85,0.00028243,2]
[395115795,1764449453992,-177.85,0.00028244,2]
[395115796,1764449454002,-177.85,0.00028244,2]
[395115797,1764449454012,-702.42,0.0002838,2]
[395115798,1764449454021,-702.2,0.00028381,2]
[395115799,1764449454031,-702.42,0.00028381,2]
[395115800,1764449454042,-2730.56786412,0.00028434,2]
[395115801,1764449454055,-370.91026638,0.0002847,2]
[395115802,1764449454065,-150.0,0.00028686,2]
[395115803,1764449454079,-150.0,0.00028686,2]
[395115804,1764449454089,-397.1393298,0.00028704,2]
[395115805,1764449454340,-947.65047468,0.000159,2]
[395115806,1764449454349,-1800.45321859,0.00015983,2]
[395115807,1764449454361,-917.54678141,0.00015983,2]
[395115808,1764449454370,-151.0,0.00022,2]
[395115809,1764449454380,-151.0,0.00022,2]
[395115810,1764449454389,-151.0,0.000249,7]
[395115811,1764449454398,-634.18394311,0.00026967,2]
[395115812,1764449454407,-102.8606702,0.00028704,2]
[395115813,1764449454417,-202.0,0.0002882,30]
[395115814,1764449454427,-1097.0,0.00028866,5]
[395115815,1764449454435,-287.06863924,0.000289,2]
[395115816,1764449454444,-1340.44312955,0.000289,2]
[395115817,1764449454456,-428.85299988,0.000289,2]
[395115818,1764449454469,-371.17557835,0.000289,2]
[395115819,1764449454819,-653.0,0.000159,2]
[395115820,1764449454839,-294.65047468,0.000159,2]
[395115821,1764449454849,-305.34952532,0.00015973,2]
[395115823,1764450060817,755.43,8.094e-05,2]
[395115824,1764450061015,755.43,8.52e-05,2]
[395115825,1764450061288,755.43,8.946e-05,2]
[395115826,1764450061493,99.81499127,9.372e-05,2]
[395115827,1764450061519,655.61500873,9.372e-05,2]
[395115828,1764450061694,755.43,9.798e-05,2]
[395115829,1764450061906,755.43,0.00010224,2]
[395115830,1764450062156,755.43,0.0001065,2]
[395115831,1764450062404,755.43,0.00011077,2]
[395115832,1764450063854,755.43,0.00011503,2]
[395115833,1764450063894,755.43,0.00011929,2]
[395115834,1764450063978,755.43,0.00012355,2]
[395115835,1764450064018,755.43,0.00012781,2]
[395115836,1764450064061,755.43,0.00013207,2]
[395115837,1764450064165,755.43,0.00013633,2]
[395115838,1764450064226,755.43,0.00014059,2]
[395115839,1764450064269,755.43,0.00014485,2]
[395115855,1764450632114,-1206.31663784,0.00014675,2]
[395115856,1764450632126,-393.68336216,0.00014675,2]
[395115857,1764450632135,-755.43,0.00014911,2]
[395115858,1764450632144,-4749.23891069,0.00015116,2]
[395115859,1764450632154,-300.0,0.00015214,2]
[395115860,1764450632163,-300.0,0.00015214,2]
[395115861,1764450632173,-300.0,0.00015214,2]
[395115862,1764450632183,-1200.0,0.00015214,2]
[395115863,1764450632192,-899.0,0.00015215,2]
[395115864,1764450632201,-500.0,0.00015215,2]
[395115865,1764450632211,-155.68001413,0.00015215,2]
[395115866,1764450632221,-306.64688398,0.00015215,2]
[395115867,1764450632230,-433.85998276,0.00015215,2]
[395115868,1764450632239,-500.0,0.00015215,2]
[395115869,1764450632249,-170.74226421,0.00015215,2]
[395115870,1764450632259,-536.53829949,0.00015215,2]
[395115871,1764450632269,-500.0,0.00015215,2]
[395115872,1764450632280,-500.0,0.00015215,2]
[395115873,1764450632290,-500.0,0.00015215,2]
[395115874,1764450632300,-500.0,0.00015215,2]
[395115875,1764450632309,-500.0,0.00015215,2]
[395115876,1764450632318,-500.0,0.00015215,2]
[395115877,1764450632328,-500.0,0.00015215,2]
[395115878,1764450632338,-500.0,0.00015215,2]
[395115879,1764450632347,-500.0,0.00015215,2]
[395115880,1764450632358,-500.0,0.00015215,2]
[395115881,1764450632367,-500.0,0.00015215,2]
[395115882,1764450632378,-500.0,0.00015215,2]
[395115883,1764450632387,-500.0,0.00015215,2]
[395115885,1764450632396,-500.0,0.00015215,2]
[395115887,1764450632406,-500.0,0.00015215,2]
[395115889,1764450632415,-500.0,0.00015215,2]
[395115891,1764450632424,-500.0,0.00015215,2]
[395115893,1764450632433,-500.0,0.00015215,2]
[395115895,1764450632442,-500.0,0.00015215,2]
[395115897,1764450632451,-500.0,0.00015215,2]
[395115898,1764450632461,-500.0,0.00015215,2]
[395115900,1764450632470,-500.0,0.00015215,2]
[395115902,1764450632479,-500.0,0.00015215,2]
[395115904,1764450632488,-500.0,0.00015215,2]
[395115905,1764450632498,-500.0,0.00015215,2]
[395115906,1764450632507,-500.0,0.00015215,2]
[395115907,1764450632516,-500.0,0.00015215,2]
[395115908,1764450632872,-500.0,0.00015215,2]
[395115909,1764450632882,-500.0,0.00015215,2]
[395115910,1764450632891,-500.0,0.00015215,2]
[395115911,1764450632900,-500.0,0.00015215,2]
[395115912,1764450632910,-500.0,0.00015215,2]
[395115913,1764450632919,-500.0,0.00015215,2]
[395115914,1764450632928,-500.0,0.00015215,2]
[395115915,1764450632937,-500.0,0.00015215,2]
[395115916,1764450632946,-500.0,0.00015215,2]
[395115917,1764450632955,-500.0,0.00015215,2]
[395115918,1764450632964,-500.0,0.00015215,2]
[395115919,1764450632973,-500.0,0.00015215,2]
[395115920,1764450632982,-500.0,0.00015215,2]
[395115921,1764450632991,-500.0,0.00015215,2]
[395115922,1764450633000,-500.0,0.00015215,2]
[395115923,1764450633010,-273.07891617,0.00015215,2]
[395115924,1764450633019,-500.0,0.00015215,2]
[395115925,1764450633028,-500.0,0.00015215,2]
[395115926,1764450633037,-500.0,0.00015215,2]
[395115927,1764450633046,-500.0,0.00015215,2]
[395115928,1764450633054,-500.0,0.00015215,2]
[395115929,1764450633063,-500.0,0.00015215,2]
[395115930,1764450633072,-500.0,0.00015215,2]
[395115931,1764450633082,-500.0,0.00015215,2]
[395115932,1764450633091,-500.0,0.00015215,2]
[395115933,1764450633100,-500.0,0.00015215,2]
[395115934,1764450633110,-500.0,0.00015215,2]
[395115935,1764450633124,-500.0,0.00015215,2]
[395115936,1764450633133,-500.0,0.00015215,2]
[395115937,1764450633143,-500.0,0.00015215,2]
[395115938,1764450633152,-277.30789162,0.00015215,2]
[395115939,1764450633161,-500.0,0.00015215,2]
[395115940,1764450633170,-500.0,0.00015215,2]
[395115941,1764450633179,-500.0,0.00015215,2]
[395115942,1764450633188,-500.0,0.00015215,2]
[395115943,1764450633198,-500.0,0.00015215,2]
[395115944,1764450633207,-500.0,0.00015215,2]
[395115945,1764450633216,-9732.0413,0.00015216,2]
[395115946,1764450633226,-261494.46669717,0.00015216,2]
[395115947,1764450633262,-1023.31953828,0.00015216,2]
[395115948,1764450633290,-614.50389,0.00015216,2]
[395115949,1764450633301,-2662.04405425,0.00015216,2]
[395115965,1764450638141,-494205.6658203,0.00015216,2]
[395115967,1764450638151,-2500.0,0.00015216,2]
[395115969,1764450638161,-3728.42888464,0.00015237,2]
[395115971,1764450638171,-200.0,0.00015307,2]
[395115973,1764450638179,-151.0,0.00015307,2]
[395115975,1764450638188,-597.09424157,0.00015307,2]
[395115977,1764450638197,-372.43,0.00015313,2]
[395115979,1764450638206,-6690.39,0.00015314,2]
[395115981,1764450638215,-150.99,0.00015314,2]
[395115983,1764450638225,-755.43,0.00015337,2]
[395115985,1764450638234,-210.4698387,0.00015385,2]
[395115987,1764450638242,-5035.29085752,0.00015485,2]
[395115989,1764450638252,-1213.49,0.000155,2]
[395115991,1764450638261,-1213.49,0.000155,2]
[395115993,1764450638271,-372.43,0.00015587,2]
[395115994,1764450638280,-755.43,0.00015763,2]
[395115996,1764450638290,-1213.49,0.000158,2]
[395115999,1764450638300,-1213.49,0.000158,2]
[395116000,1764450638310,-151.0,0.00015855,2]
[395116001,1764450638319,-372.43,0.00015861,2]
[395116002,1764450638328,-1000.0,0.00015873,2]
[395116003,1764450638338,-192.97090635,0.00015936,2]
[395116004,1764450638347,-504.164248,0.00015973,2]
[395116005,1764450638357,-500.0,0.00015973,2]
[395116006,1764450638367,-176.16235425,0.00015973,2]
[395116007,1764450638376,-500.0,0.00015973,2]
[395116008,1764450638386,-500.0,0.00015973,2]
[395116009,1764450638395,-500.0,0.00015973,2]
[395116010,1764450638404,-500.0,0.00015973,2]
[395116011,1764450638413,-545.6682471,0.00015973,2]
[395116012,1764450638423,-500.0,0.00015973,2]
[395116013,1764450638431,-193.03771092,0.00015973,2]
[395116014,1764450638440,-500.0,0.00015973,2]
[395116015,1764450638449,-1320.61,0.00016,2]
[395116016,1764450638459,-372.43,0.00016135,2]
[395116024,1764450638831,-250.0,0.00016142,2]
[395116025,1764450638841,-755.43,0.00016189,2]
[395116026,1764450638850,-510.0,0.0001634,2]
[395116027,1764450638860,-372.43,0.00016409,2]
[395116028,1764450638870,-154.9,0.00016435,2]
[395116029,1764450638879,-200.0,0.00016435,2]
[395116030,1764450638889,-390.0,0.00016438,2]
[395116031,1764450638898,-500.0,0.00016438,2]
[395116032,1764450638907,-500.0,0.00016438,2]
[395116033,1764450638916,-500.0,0.00016438,2]
[395116034,1764450638926,-500.0,0.00016438,2]
[395116035,1764450638935,-500.0,0.00016438,2]
[395116036,1764450638944,-500.0,0.00016438,2]
[395116037,1764450638954,-559.75340996,0.00016438,2]
[395116038,1764450638964,-500.0,0.00016438,2]
[395116039,1764450638973,-500.0,0.00016438,2]
[395116040,1764450638983,-500.0,0.00016438,2]
[395116041,1764450638993,-500.0,0.00016438,2]
[395116042,1764450639003,-500.0,0.00016438,2]
[395116043,1764450639012,-10532.16,0.00016438,2]
[395116044,1764450639022,-800.0,0.00016438,2]
[395116045,1764450639031,-432.69998149,0.0001647,2]
[395116046,1764450639041,-427.45964135,0.00016507,2]
[395116047,1764450639050,-1600.0,0.00016509,2]
[395116048,1764450639060,-500.0,0.0001652,2]
[395116049,1764450639070,-1000.0,0.00016521,2]
[395116050,1764450639079,-1000.0,0.00016521,2]
[395116051,1764450639088,-1000.0,0.00016521,2]
[395116052,1764450639097,-962.99365393,0.00016521,2]
[395116053,1764450639108,-1000.0,0.00016521,2]
[395116054,1764450639121,-1000.0,0.00016521,2]
[395116055,1764450639131,-420.0,0.00016647,2]
[395116056,1764450639141,-420.0,0.00016647,2]
[395116057,1764450639156,-1680.0,0.00016732,2]
[395116058,1764450639171,-658.77527407,0.00016811,2]
[395116059,1764450639182,-477.0,0.00016832,2]
[395116060,1764450639193,-48231.4766975,0.00016905,2]
[395116061,1764450639203,-477.0,0.00016911,2]
[395116062,1764450639213,-965.40466672,0.00016943,2]
[395116063,1764450639224,-157.55322003,0.00016973,2]
[395116064,1764450639234,-500.0,0.00016973,2]
[395116065,1764450639244,-500.0,0.00016973,2]
[395116066,1764450639254,-500.0,0.00016973,2]
[395116067,1764450639264,-500.0,0.00016973,2]
[395116068,1764450639274,-500.0,0.00016973,2]
[395116069,1764450639284,-500.0,0.00016973,2]
[395116070,1764450639293,-500.0,0.00016973,2]
[395116071,1764450639303,-343.55677068,0.00016973,2]
[395116072,1764450639312,-508.17996373,0.00016973,2]
[395116073,1764450639322,-281.67573932,0.00016973,2]
[395116074,1764450639331,-500.0,0.00016973,2]
[395116075,1764450639341,-500.0,0.00016973,2]
[395116076,1764450639351,-500.0,0.00016973,2]
[395116077,1764450639361,-500.0,0.00016973,2]
[395116078,1764450639371,-500.0,0.00016973,2]
[395116079,1764450639381,-500.0,0.00016973,2]
[395116080,1764450639391,-500.0,0.00016973,2]
[395116081,1764450639400,-500.0,0.00016973,2]
[395116082,1764450639410,-477.0,0.00016977,2]
[395116083,1764450639420,-477.0,0.00017027,2]
[395116084,1764450639430,-500.0,0.00017068,2]
[395116085,1764450639440,-1500.0,0.00017068,2]
[395116086,1764450639449,-1500.0,0.00017068,2]
[395116087,1764450639459,-1500.0,0.00017068,2]
[395116088,1764450639469,-1500.0,0.00017068,2]
[395116089,1764450639480,-477.0,0.00017116,2]
[395116090,1764450639490,-477.0,0.00017131,2]
[395116091,1764450639499,-1258.0,0.00017161,2]
[395116092,1764450639509,-640.0,0.00017161,2]
[395116093,1764450639518,-1193.0,0.00017161,2]
[395116094,1764450639527,-909.0,0.00017161,2]
[395116095,1764450639537,-252.0,0.00017161,2]
[395116096,1764450639546,-2718.0,0.00017161,2]
[395116097,1764450639556,-562.0,0.00017161,2]
[395116098,1764450639565,-150.0,0.00017173,2]
[395116099,1764450639574,-150.0,0.00017173,2]
[395116100,1764450639583,-185.387,0.00017173,2]
[395116101,1764450639592,-250.0,0.00017173,2]
[395116102,1764450639602,-150.0,0.00017173,2]
[395116103,1764450639612,-3441.0,0.00017173,2]
[395116104,1764450639621,-610.0,0.00017173,2]
[395116105,1764450639630,-1603.0,0.00017173,2]
[395116106,1764450639640,-1321.0,0.00017173,2]
[395116107,1764450639650,-477.0,0.00017309,2]
[395116108,1764450639659,-477.0,0.00017324,2]
[395116109,1764450639668,-477.0,0.00017351,2]
[395116110,1764450639678,-477.0,0.00017487,2]
[395116111,1764450639689,-1000.0,0.00017521,2]
[395116112,1764450639699,-1000.0,0.00017521,2]
[395116113,1764450639708,-167.97644675,0.00017521,2]
[395116114,1764450639717,-1000.0,0.00017521,2]
[395116115,1764450639726,-1000.0,0.00017521,2]
[395116116,1764450639736,-992.70829598,0.00017521,2]
[395116117,1764450639745,-283.26620629,0.00017521,2]
[395116118,1764450639755,-1000.0,0.00017521,2]
[395116119,1764450639765,-1000.0,0.00017521,2]
[395116120,1764450639774,-1000.0,0.00017521,2]
[395116121,1764450639784,-1000.0,0.00017521,2]
[395116122,1764450639794,-1116.36173236,0.00017521,2]
[395116123,1764450639803,-1000.0,0.00017521,2]
[395116124,1764450639813,-1000.0,0.00017521,2]
[395116125,1764450639822,-1058.19890298,0.00017521,2]
[395116126,1764450639831,-452.21585205,0.00017534,2]
[395116127,1764450639841,-866.0,0.00017542,2]
[395116128,1764450639851,-1852.42,0.00017572,2]
[395116129,1764450639861,-477.0,0.00017601,2]
[395116130,1764450639871,-154.9,0.00017609,2]
[395116132,1764450639881,-2000.0,0.00017616,2]
[395116134,1764450639891,-2000.0,0.00017616,2]
[395116135,1764450639900,-2000.0,0.00017616,2]
[395116136,1764450639910,-2000.0,0.00017616,2]
[395116137,1764450639919,-477.0,0.00017636,2]
[395116138,1764450639929,-477.0,0.00017666,2]
[395116139,1764450639938,-477.0,0.00017715,2]
[395116140,1764450639949,-477.0,0.00017754,2]
[395116141,1764450639959,-477.0,0.00017866,2]
[395116142,1764450639969,-477.0,0.0001795,2]
[395116143,1764450639979,-477.0,0.0001795,2]
[395116144,1764450639988,-4749.23891065,0.00017968,2]
[395116145,1764450639999,-300.0,0.00018002,2]
[395116146,1764450640008,-368.76312057,0.00018002,2]
[395116147,1764450640019,-162.9203721,0.00018002,2]
[395116148,1764450640029,-232.49252269,0.00018002,2]
[395116149,1764450640038,-300.0,0.00018002,2]
[395116150,1764450640048,-151.0,0.00018002,2]
[395116151,1764450640058,-151.0,0.00018002,2]
[395116152,1764450640067,-151.0,0.00018002,2]
[395116153,1764450640076,-151.0,0.00018002,2]
[395116154,1764450640085,-250.0,0.00018002,2]
[395116155,1764450640095,-151.0,0.00018002,2]
[395116156,1764450640107,-250.0,0.00018002,2]
[395116157,1764450640120,-151.0,0.00018002,2]
[395116158,1764450640130,-250.0,0.00018002,2]
[395116159,1764450640140,-151.0,0.00018002,2]
[395116160,1764450640149,-250.0,0.00018002,2]
[395116161,1764450640159,-151.0,0.00018002,2]
[395116162,1764450640169,-250.0,0.00018002,2]
[395116163,1764450640179,-151.0,0.00018002,2]
[395116164,1764450640189,-250.0,0.00018002,2]
[395116165,1764450640199,-151.0,0.00018002,2]
[395116166,1764450640208,-250.0,0.00018002,2]
[395116167,1764450640218,-151.0,0.00018002,2]
[395116168,1764450640228,-250.0,0.00018002,2]
[395116169,1764450640238,-151.0,0.00018002,2]
[395116170,1764450640247,-1000.0,0.00018002,2]
[395116171,1764450640257,-581.11753153,0.00018002,2]
[395116172,1764450640267,-267.46074303,0.00018002,2]
[395116173,1764450640277,-1000.0,0.00018002,2]
[395116174,1764450640287,-1000.0,0.00018002,2]
[395116175,1764450640296,-1000.0,0.00018002,2]
[395116176,1764450640306,-1000.0,0.00018002,2]
[395116177,1764450640315,-1000.0,0.00018002,2]
[395116178,1764450640325,-1000.0,0.00018002,2]
[395116179,1764450640335,-1000.0,0.00018002,2]
[395116180,1764450640345,-488.3323414,0.00018002,2]
[395116181,1764450640354,-400.0,0.00018002,2]
[395116182,1764450640364,-156.68871822,0.00018047,2]
[395116183,1764450640374,-384.9832306,0.00018068,2]
[395116184,1764450640383,-1454.98304928,0.00018068,2]
[395116185,1764450640393,-380.42304806,0.00018068,2]
[395116186,1764450640403,-512.60268871,0.00018068,2]
[395116187,1764450640412,-1500.0,0.00018068,2]
[395116188,1764450640422,-1500.0,0.00018068,2]
[395116189,1764450640432,-1500.0,0.00018068,2]
[395116190,1764450640441,-1500.0,0.00018068,2]
[395116191,1764450640450,-383.56702396,0.00018068,2]
[395116192,1764450640460,-363.75,0.00018082,2]
[395116193,1764450640471,-3728.42888459,0.00018088,2]
[395116194,1764450640480,-390.0,0.00018107,2]
[395116195,1764450640490,-477.0,0.00018109,2]
[395116196,1764450640500,-2500.0,0.00018164,2]
[395116197,1764450640510,-2500.0,0.00018164,2]
[395116199,1764450640520,-1507.25612712,0.00018164,2]
[395116200,1764450640530,-2500.0,0.00018164,2]
[395116201,1764450640540,-477.0,0.00018168,2]
[395116202,1764450640549,-587.0,0.00018216,2]
[395116203,1764450640559,-587.0,0.00018216,2]
[395116204,1764450640569,-477.0,0.00018227,2]
[395116205,1764450640578,-477.0,0.0001826,2]
[395116206,1764450640588,-477.0,0.00018313,2]
[395116207,1764450640598,-477.0,0.00018341,2]
[395116208,1764450640608,-1600.0,0.00018343,2]
[395116209,1764450640618,-365.84,0.0001836,2]
[395116210,1764450640627,-477.0,0.00018383,2]
[395116211,1764450640637,-176.74200586,0.000184,2]
[395116212,1764450640646,-2351.0,0.00018401,2]
[395116213,1764450640656,-1000.0,0.0001855,2]
[395116214,1764450640665,-283.4470219,0.00018616,2]
[395116215,1764450640675,-2000.0,0.00018616,2]
[395116217,1764450640684,-500.0,0.00018616,2]
[395116218,1764450640694,-2000.0,0.00018616,2]
[395116219,1764450640704,-365.84,0.00018634,2]
[395116220,1764450640713,-1954.95018247,0.00018712,2]
[395116221,1764450640723,-3134.06619687,0.00018712,2]
[395116222,1764450640732,-3000.0,0.00018712,2]
[395116223,1764450640742,-363.75,0.0001876,2]
[395116224,1764450640751,-154.9,0.00018783,2]
[395116225,1764450640762,-1473.0,0.00018851,2]
[395116226,1764450640771,-365.84,0.00018908,2]
[395116227,1764450640781,-20569.81329144,0.00019,2]
[395116228,1764450640790,-610.14928927,0.00019,2]
[395116229,1764450640799,-200.0,0.00019082,2]
[395116230,1764450640808,-1000.0,0.00019098,2]
[395116231,1764450640818,-2500.0,0.00019164,2]
[395116232,1764450640832,-2500.0,0.00019164,2]
[395116233,1764450640842,-500.0,0.0001917,2]
[395116234,1764450640852,-500.0,0.0001917,2]
[395116235,1764450640862,-500.0,0.0001917,2]
[395116236,1764450640872,-500.0,0.0001917,2]
[395116237,1764450640881,-700.0,0.0001917,2]
[395116238,1764450640891,-1000.0,0.0001917,2]
[395116239,1764450640901,-1000.0,0.0001917,2]
[395116240,1764450640911,-1000.0,0.0001917,2]
[395116241,1764450640920,-1000.0,0.0001917,2]
[395116242,1764450640930,-1200.0,0.0001917,2]
[395116243,1764450640940,-151.0,0.00019178,2]
[395116244,1764450640950,-365.84,0.00019182,2]
[395116245,1764450640960,-150.0,0.000192,7]
[395116246,1764450640969,-3500.0,0.0001926,2]
[395116247,1764450640979,-311.1,0.00019371,2]
[395116248,1764450640988,-277.35679052,0.00019371,2]
[395116249,1764450640998,-250.0,0.0001939,2]
[395116250,1764450641008,-500.0,0.00019437,2]
[395116251,1764450641018,-150.0,0.00019437,2]
[395116252,1764450641027,-500.0,0.00019437,2]
[395116253,1764450641037,-363.75,0.00019438,2]
[395116254,1764450641046,-365.84,0.00019456,2]
[395116255,1764450641056,-500.0,0.00019574,2]
[395116256,1764450641064,-150.0,0.00019574,2]
[395116257,1764450641074,-500.0,0.00019574,2]
[395116258,1764450641084,-1000.0,0.00019646,2]
[395116259,1764450641093,-500.0,0.00019711,2]
[395116260,1764450641103,-150.0,0.00019711,2]
[395116261,1764450641115,-500.0,0.00019711,2]
[395116262,1764450641126,-384.52230467,0.00019712,2]
[395116263,1764450641135,-3097.62353283,0.00019712,2]
[395116264,1764450641145,-156.587,0.00019726,2]
[395116265,1764450641154,-637.27210266,0.00019726,2]
[395116266,1764450641164,-365.85,0.0001973,2]